fUSD/lending_fUSD_20241202
["ID","MTS","AMOUNT","RATE_DAILY","PERIOD"]
[343977217,1733165847441,500.0,0.00025,120]
[343977218,1733165847573,1638.51,0.00025,120]
[343977219,1733165847626,500.0,0.00025,120]
[343977220,1733165847691,1940.3,0.00025,120]
[343977221,1733165848632,1941.52,0.00025,120]
[343977222,1733165850392,500.0,0.00025,120]
[343977223,1733165851046,1718.58,0.00025,120]
[343977224,1733165851453,3352.96,0.00025,120]
[343977225,1733165853044,1189.88,0.00025,120]
[343977226,1733165853224,3384.18,0.00025,120]
[343977227,1733165853283,728.95,0.00025,120]
[343977228,1733165854588,5421.72,0.00025,120]
[343977229,1733165854975,2526.92,0.00025,120]
[343977230,1733165855037,6567.88,0.00025,120]
[343977231,1733165855842,621.41499868,0.00025,120]
[343977232,1733165856376,500.0,0.00025,120]
[343977233,1733165856648,500.0,0.00025,120]
[343977234,1733165857019,2686.9,0.00025,120]
[343977235,1733165857082,1849.47,0.00025,120]
[343977236,1733165857295,7231.44,0.00025,120]
[343977237,1733165857353,500.0,0.00025,120]
[343977238,1733165858015,500.0,0.00025,120]
[343977239,1733165858308,2637.72,0.00025,120]
[343977240,1733165858734,3194.13,0.00025,120]
[343977241,1733165858896,26676.57,0.00025,120]
[343977242,1733165859738,2007.05,0.00025,120]
[343977243,1733165861292,500.0,0.00025,120]
[343977244,1733165862417,542.53,0.00025,120]
[343977245,1733165863311,611.21,0.00025,120]
[343977246,1733165863797,500.0,0.00025,120]
[343977247,1733165864282,2062.48,0.00025,120]
[343977248,1733165864403,4973.36,0.00025,120]
[343977249,1733165864489,500.0,0.00025,120]
[343977250,1733165864543,243.78626267,0.00025,120]
[343977251,1733165864602,1204.35,0.00025,120]
[343977252,1733165865855,635.79,0.00025,120]
[343977253,1733165866354,639.26,0.00025,120]
[343977254,1733165866428,512.1003286,0.00025,120]
[343977255,1733165867807,500.0,0.00025,120]
[343977256,1733165868433,500.0,0.00025,120]
[343977257,1733165868813,998.53,0.00025,120]
[343977258,1733165869401,2412.93,0.00025,120]
[343977259,1733165870603,3795.28,0.00025,120]
[343977260,1733165870820,537.3,0.00025,120]
[343977261,1733165872363,17813.89,0.00025,120]
[343977262,1733165872879,500.0,0.00025,120]
[343977263,1733165872966,2126.94,0.00025,120]
[343977264,1733165873245,500.0,0.00025,120]
[343977265,1733165873315,500.0,0.00025,120]
[343977266,1733165874093,1519.16,0.00025,120]
[343977267,1733165874485,500.0,0.00025,120]
[343977268,1733165874865,5572.97,0.00025,120]
[343977269,1733165875472,500.0,0.00025,120]
[343977270,1733165876078,1140.1,0.00025,120]
[343977271,1733165876456,561.21,0.00025,120]
[343977272,1733165877483,1950.64,0.00025,120]
[343977273,1733165878025,583.13,0.00025,120]
[343977274,1733165878431,7457.96,0.00025,120]
[343977276,1733165878990,500.0,0.00025,120]
[343977277,1733165880160,2813.32,0.00025,120]
[343977278,1733165880399,1468.34,0.00025,120]
[343977279,1733165881243,566.77,0.00025,120]
[343977280,1733165883347,500.0,0.00025,120]
[343977281,1733165884055,1122.82,0.00025,120]
[343977282,1733165884762,500.0,0.00025,120]
[343977283,1733165885237,1367.58,0.00025,120]
[343977284,1733165885428,2880.44,0.00025,120]
[343977285,1733165885703,625.29,0.00025,120]
[343977286,1733165886344,4287.26,0.00025,120]
[343977287,1733165886467,500.0,0.00025,120]
[343977288,1733165887428,1120.91,0.00025,120]
[343977289,1733165887775,500.0,0.00025,120]
[343977290,1733165888129,1892.6,0.00025,120]
[343977291,1733165888791,524.11,0.00025,120]
[343977292,1733165889291,5887.84,0.00025,120]
[343977293,1733165889341,500.0,0.00025,120]
[343977294,1733165890408,500.0,0.00025,120]
[343977295,1733165891634,3646.76,0.00025,120]
[343977296,1733165892720,3652.68,0.00025,120]
[343977297,1733165895302,500.0,0.00025,120]
[343977298,1733165895473,500.0,0.00025,120]
[343977299,1733165896739,508.70272886,0.00025,120]
[343977300,1733165897595,2195.68,0.00025,120]
[343977301,1733165897964,3719.34,0.00025,120]
[343977302,1733165898179,500.0,0.00025,120]
[343977303,1733165898296,6549.74,0.00025,120]
[343977304,1733165898611,1896.2,0.00025,120]
[343977305,1733165898809,1481.8,0.00025,120]
[343977306,1733165899227,3715.32,0.00025,120]
[343977307,1733165899464,1814.71,0.00025,120]
[343977308,1733165899981,2081.36,0.00025,120]
[343977309,1733165900037,1299.6,0.00025,120]
[343977310,1733165900184,500.0,0.00025,120]
[343977311,1733165900625,500.0,0.00025,120]
[343977312,1733165900679,971.06,0.00025,120]
[343977313,1733165900841,554.31,0.00025,120]
[343977314,1733165901012,500.0,0.00025,120]
[343977315,1733165901519,500.0,0.00025,120]
[343977316,1733165901714,845.01,0.00025,120]
[343977317,1733165902264,500.0,0.00025,120]
[343977318,1733165902614,500.0,0.00025,120]
[343977319,1733165903009,500.0,0.00025,120]
[343977320,1733165905732,1095.59,0.00025,120]
[343977321,1733165907205,1282.46,0.00025,120]
[343977322,1733165907282,2087.18,0.00025,120]
[343977323,1733165907350,3326.4,0.00025,120]
[343977324,1733165909196,3747.96,0.00025,120]
[343977325,1733165909359,1299.58,0.00025,120]
[343977326,1733165909429,500.0,0.00025,120]
[343977327,1733165909477,1785.8,0.00025,120]
[343977328,1733165909530,500.0,0.00025,120]
[343977329,1733165909606,854.45,0.00025,120]
[343977330,1733165910188,867.28,0.00025,120]
[343977331,1733165910346,500.0,0.00025,120]
[343977332,1733165911180,4667.44,0.00025,120]
[343977333,1733165911290,500.0,0.00025,120]
[343977334,1733165912001,874.81,0.00025,120]
[343977335,1733165913102,746.9,0.00025,120]
[343977336,1733165913832,9386.45,0.00025,120]
[343977337,1733165914349,3390.77,0.00025,120]
[343977338,1733165914852,1401.8,0.00025,120]
[343977339,1733165917290,15773.7312329,0.00025,120]
[343977340,1733165955870,75674.7,6.932e-05,2]
[343977341,1733165969429,166.67,7.14e-05,2]
[343977342,1733166005299,170.0,7.14e-05,30]
[343977343,1733166005529,170.0,0.00010112,30]
[343977348,1733166130344,1242.4,6.923e-05,2]
[343977467,1733166218716,500.0,6.867e-05,2]
[343977468,1733166218962,500.0,6.868e-05,2]
[343977469,1733166219334,500.0,6.868e-05,2]
[343977489,1733166304958,171.0,7.14e-05,30]
[343977490,1733166305043,171.0,0.00012093,30]
[343977491,1733166305138,177.0,7.14e-05,30]
[343977492,1733166305480,177.0,0.00010855,30]
[343977495,1733166336023,596.19,6.949e-05,2]
[343977496,1733166429078,6074.65,6.945e-05,2]
[343977906,1733166574669,168.17,6.874e-05,2]
[343977907,1733166585415,166.67,7.08e-05,2]
[343977908,1733166603329,171.0,7.14e-05,30]
[343977909,1733166603894,178.0,7.14e-05,30]
[343977913,1733166632403,-1890.4257384,7.546e-05,2]
[343977914,1733166632415,-1227.3832616,7.546e-05,2]
[343977915,1733166632424,-174.621,7.546e-05,2]
[343977917,1733166632434,-1000.0,7.6e-05,2]
[343977919,1733166632443,-307.0957384,7.6e-05,2]
[343977921,1733166632454,-375.500004,7.6e-05,2]
[343977924,1733166632651,-1197.73962505,7.6e-05,2]
[343977925,1733166632663,-619.66463255,7.6e-05,2]
[343977926,1733166632672,-179.0,7.6e-05,2]
[343977927,1733166632683,-3701.1222372,7.623e-05,2]
[343977928,1733166632695,-11296.8777628,7.623e-05,2]
[343977929,1733166632705,-155.0,7.671e-05,2]
[343977930,1733166632714,-1709.0,7.671e-05,2]
[343977931,1733166632723,-3068.0,7.671e-05,2]
[343977932,1733166632733,-159.42101921,7.673e-05,2]
[343977933,1733166632742,-159.40294759,7.673e-05,2]
[343977934,1733166632752,-159.40551861,7.673e-05,2]
[343977935,1733166632761,-159.41783761,7.673e-05,2]
[343977937,1733166632770,-500.0,7.673e-05,2]
[343977939,1733166632780,-500.0,7.673e-05,2]
[343977941,1733166632789,-159.41899132,7.673e-05,2]
[343977943,1733166632799,-200.0,7.679e-05,2]
[343977945,1733166632808,-200.0,7.687e-05,2]
[343977947,1733166632817,-200.0,7.688e-05,2]
[343977949,1733166632827,-200.0,7.691e-05,2]
[343977951,1733166632836,-184.842,7.698e-05,2]
[343977953,1733166632846,-816.0,7.698e-05,2]
[343977955,1733166632855,-1190.334,7.698e-05,2]
[343977957,1733166632864,-535.0,7.698e-05,2]
[343977959,1733166632874,-249.99259783,7.699e-05,2]
[343977961,1733166632883,-500.0,7.699e-05,2]
[343977963,1733166632895,-150.0,7.699e-05,2]
[343977965,1733166632904,-11226.82099943,7.699e-05,2]
[343977979,1733166638464,-17847.66707628,7.699e-05,2]
[343977980,1733166638474,-200.0,7.699e-05,2]
[343977981,1733166638483,-325.47491017,7.7e-05,2]
[343977982,1733166638495,-1787.92,7.7e-05,2]
[343977983,1733166638506,-8397.33288894,7.7e-05,2]
[343977984,1733166638552,-11146987.6573074,7.7e-05,2]
[343977985,1733166638580,-272150.65856083,7.7e-05,2]
[343977986,1733166638591,-253.58,7.7e-05,2]
[343977987,1733166638663,-31250.96978279,7.7e-05,2]
[343978193,1733166640720,-566.84138598,7.7e-05,2]
[343978195,1733166640732,-903.41500001,7.7e-05,2]
[343978208,1733166640876,-3648.79072217,7.7e-05,2]
[343978210,1733166640887,-1563.4161,7.7e-05,2]
[343978211,1733166640989,-398.62975953,7.7e-05,2]
[343978212,1733166641000,-3593.47834983,7.7e-05,2]
[343978213,1733166641012,-1746.3324078,7.7e-05,2]
[343978214,1733166641023,-4829.16031994,7.7e-05,2]
[343978215,1733166641035,-11148.5019612,7.7e-05,2]
[343978216,1733166641046,-1399.79399091,7.7e-05,2]
[343978220,1733166643315,-17796.48456515,7.7e-05,2]
[343978222,1733166643379,-368047.6238799,7.7e-05,2]
[343978224,1733166643559,-422.90000105,7.7e-05,2]
[343978225,1733166643570,-4560.6845592,7.7e-05,2]
[343978227,1733166643658,-14791.31128423,7.7e-05,2]
[343978234,1733166646273,-500.0,7.673e-05,2]
[343978236,1733166646282,-471.74309727,7.7e-05,2]
[343978237,1733166646293,-732.88664445,7.7e-05,2]
[343978238,1733166646304,-12638.9952,7.7e-05,2]
[343978271,1733166688096,-676.172975,7.7e-05,2]
[343978272,1733166688107,-6819.12506475,7.7e-05,2]
[343978273,1733166688130,-19561.99851415,7.7e-05,2]
[343978274,1733166688141,-8166.57009,7.7e-05,2]
[343978275,1733166688152,-285.03565908,7.7e-05,2]
[343978276,1733166688163,-1870.3527776,7.7e-05,2]
[343978277,1733166688197,-300.0,7.7e-05,2]
[343978278,1733166688208,-2137.90186013,7.7e-05,2]
[343978279,1733166688219,-4062.676665,7.7e-05,2]
[343978280,1733166706335,500.0,7e-05,2]
[343978281,1733166707372,1100.0,7.1e-05,2]
[343978282,1733166708568,3739.73,6.92e-05,2]
[343978283,1733166817807,500.0,6.865e-05,2]
[343978284,1733166903850,178.0,6.865e-05,30]
[343978285,1733166904169,172.43948913,6.865e-05,30]
[343978288,1733167046557,275.28,6.873e-05,2]
[343978289,1733167087533,23900.0,6.885e-05,2]
[343978290,1733167202504,166.67,7.064e-05,2]
[343978291,1733167203480,179.19466419,6.865e-05,30]
[343978292,1733167206728,9331.901751,7.162e-05,2]
[343978293,1733167239190,284.58,6.872e-05,2]
[343978294,1733167290512,500.0,6.872e-05,2]
[343978296,1733167373219,-1000.0,7.2e-05,2]
[343978297,1733167415655,500.0,7.142e-05,2]
[343978298,1733167420239,1000.0,7.163e-05,2]
[343978299,1733167526163,150.0,6.929e-05,2]
[343978301,1733167636653,400.0,7e-05,2]
[343978302,1733167638784,800.0,7.1e-05,2]
[343978317,1733167742370,2287.23,6.812e-05,2]
[343978318,1733167787008,302.82,6.798e-05,2]
[343978328,1733167831660,-1300.0,7.2e-05,2]
[343978329,1733167831670,-1700.0,7.3e-05,2]
[343978330,1733167831680,-2200.0,7.4e-05,2]
[343978331,1733167831690,-300.0,7.499e-05,2]
[343978332,1733167831700,-150.0,7.499e-05,2]
[343978333,1733167831710,-400.0,7.5e-05,2]
[343978334,1733167831721,-2346.84263185,7.5e-05,2]
[343978335,1733167831733,-2140.63522625,7.5e-05,2]
[343978336,1733167831772,-20972.119134,7.5e-05,2]
[343978337,1733167831816,-293.65346243,7.5e-05,2]
[343978338,1733167831827,-1345.871211,7.5e-05,2]
[343978339,1733167831851,-477.0,7.5e-05,2]
[343978356,1733167834276,-580.87891067,7.5e-05,2]
[343978358,1733167837518,-1477.47,7.5e-05,2]
[343978359,1733167837531,-5254.67305374,7.5e-05,2]
[343978360,1733167837658,-1996.17507761,7.5e-05,2]
[343978361,1733167837806,-961.72129245,7.5e-05,2]
[343978362,1733167837815,-3924.3279,7.571e-05,2]
[343978363,1733167837825,-2500.0,7.6e-05,2]
[343978364,1733167837835,-400.0,7.6e-05,2]
[343978365,1733167837844,-1198.0,7.6e-05,2]
[343978366,1733167837854,-1378.9849,7.644e-05,2]
[343978367,1733167837863,-302.82,7.648e-05,2]
[343978368,1733167837872,-2682.197,7.671e-05,2]
[343978369,1733167837882,-174.622,7.671e-05,2]
[343978370,1733167837892,-4383.0,7.671e-05,2]
[343978371,1733167837902,-462.0,7.671e-05,2]
[343978372,1733167837911,-9800.0,7.671e-05,2]
[343978374,1733167837920,-501.19354669,7.673e-05,2]
[343978376,1733167837929,-500.0,7.673e-05,2]
[343978378,1733167837939,-500.0,7.673e-05,2]
[343978380,1733167837948,-501.02234171,7.673e-05,2]
[343978382,1733167837961,-500.0,7.673e-05,2]
[343978384,1733167837970,-171.85109974,7.673e-05,2]
[343978386,1733167837982,-188.32065729,7.673e-05,2]
[343978388,1733167837996,-198.3320313,7.673e-05,2]
[343978390,1733167838006,-154.86581781,7.673e-05,2]
[343978393,1733167838016,-169.37941615,7.673e-05,2]
[343978395,1733167838026,-169.85283131,7.673e-05,2]
[343978397,1733167838038,-159.86139184,7.673e-05,2]
[343978399,1733167838047,-160.97411919,7.673e-05,2]
[343978401,1733167838057,-159.88212604,7.673e-05,2]
[343978403,1733167838070,-159.43312959,7.673e-05,2]
[343978405,1733167838081,-157.43351121,7.673e-05,2]
[343978407,1733167838090,-161.85975798,7.673e-05,2]
[343978409,1733167838100,-159.86148801,7.673e-05,2]
[343978411,1733167838110,-159.86148812,7.673e-05,2]
[343978413,1733167838120,-165.79981203,7.673e-05,2]
[343978415,1733167838129,-201.87646363,7.673e-05,2]
[343978417,1733167838140,-159.86148924,7.673e-05,2]
[343978419,1733167838150,-159.86148812,7.673e-05,2]
[343978421,1733167838160,-159.89349923,7.673e-05,2]
[343978423,1733167838170,-159.86148812,7.673e-05,2]
[343978425,1733167838179,-157.46356985,7.673e-05,2]
[343978427,1733167838189,-500.0,7.673e-05,2]
[343978429,1733167838198,-501.54767524,7.673e-05,2]
[343978431,1733167838208,-500.0,7.673e-05,2]
[343978433,1733167838217,-159.41405639,7.673e-05,2]
[343978435,1733167838227,-161.4017013,7.673e-05,2]
[343978437,1733167838236,-159.86148812,7.673e-05,2]
[343978439,1733167838246,-260.89206775,7.673e-05,2]
[343978441,1733167838255,-3999.9838526,7.69e-05,2]
[343978443,1733167838265,-117191.68437027,7.69e-05,2]
[343978444,1733167838275,-9323.8839952,7.693e-05,2]
[343978445,1733167838285,-17160.3804239,7.693e-05,2]
[343978446,1733167838295,-15540.0419821,7.695e-05,2]
[343978447,1733167838306,-3543.996,7.698e-05,2]
[343978448,1733167838316,-150.0,7.698e-05,2]
[343978449,1733167838326,-633.0,7.698e-05,2]
[343978450,1733167838337,-1166.0,7.698e-05,2]
[343978451,1733167838346,-1097.0,7.698e-05,2]
[343978452,1733167838357,-150.01,7.699e-05,2]
[343978454,1733167838366,-2940.55,7.699e-05,2]
[343978455,1733167838376,-462460.26173048,7.7e-05,2]
[343978468,1733167838486,-69458.42673921,7.7e-05,2]
[343978470,1733167838498,-543.85854311,7.7e-05,2]
[343978474,1733167838525,-7729173.98561648,7.7e-05,2]
[343978476,1733167838535,-2799.02,7.7e-05,2]
[343978478,1733167838544,-39181.66079302,7.7e-05,2]
[343978480,1733167838554,-600.0,7.7e-05,2]
[343978482,1733167838563,-600.0,7.7e-05,2]
[343978484,1733167838573,-400.0,7.7e-05,2]
[343978486,1733167838582,-18106642.5083976,7.7e-05,2]
[343978488,1733167838595,-9763.4,7.7e-05,2]
[343978586,1733167839574,-1507.96522797,7.7e-05,2]
[343978588,1733167839586,-297.26619613,7.7e-05,2]
[343978590,1733167839597,-312.807785,7.7e-05,2]
[343978610,1733167839783,-508.17271927,7.7e-05,2]
[343978653,1733167842454,-739.58002408,7.7e-05,2]
[343978655,1733167842466,-674.1750025,7.7e-05,2]
[343978657,1733167842477,-331.912,7.7e-05,2]
[343978658,1733167842488,-3337.8798,7.7e-05,2]
[343978662,1733167842555,-2899.21522313,7.7e-05,2]
[343978663,1733167842588,-38141.6,7.7e-05,2]
[343978664,1733167842758,-500.0,7.673e-05,2]
[343978665,1733167842767,-10668.42276127,7.7e-05,2]
[343978666,1733167842779,-985.24805112,7.7e-05,2]
[343978667,1733167842790,-12032.57870091,7.7e-05,2]
[343978668,1733167842845,-5373.65915319,7.7e-05,2]
[343978669,1733167842857,-10873.37288,7.7e-05,2]
[343978683,1733167845719,-410.28082733,7.7e-05,2]
[343978684,1733167845730,-1072.89030544,7.7e-05,2]
[343978685,1733167845830,-944.0000042,7.7e-05,2]
[343978686,1733167845841,-1165.99995263,7.7e-05,2]
[343978687,1733167845852,-5414.328,7.7e-05,2]
[343978693,1733167875135,400.0,7e-05,2]
[343978694,1733167877248,800.0,7.1e-05,2]
[343978697,1733168014383,500.0,7.043e-05,2]
[343978698,1733168172051,200.0,6.796e-05,2]
[343978699,1733168214110,415.55,6.843e-05,2]
[343978700,1733168234502,-1644.84081712,0.00036372,60]
[343978701,1733168234531,-5220.31675608,0.00036372,91]
[343978702,1733168234556,-252.8367898,0.00036372,120]
[343978703,1733168234583,-506.05,0.00036372,120]
[343978704,1733168234613,-506.05,0.00036372,120]
[343978705,1733168234639,-506.05,0.00036372,120]
[343978706,1733168234665,-506.05,0.00036372,120]
[343978707,1733168234690,-506.05,0.00036372,120]
[343978708,1733168234715,-506.05,0.00036372,120]
[343978709,1733168234739,-506.05,0.00036372,120]
[343978710,1733168234763,-506.05,0.00036372,120]
[343978711,1733168234790,-506.05,0.00036372,120]
[343978712,1733168234815,-506.05,0.00036372,120]
[343978713,1733168234839,-506.05,0.00036372,120]
[343978714,1733168235413,-506.05,0.00036372,120]
[343978715,1733168235444,-506.05,0.00036372,120]
[343978716,1733168235470,-506.05,0.00036372,120]
[343978717,1733168235496,-506.05,0.00036372,120]
[343978718,1733168235522,-506.05,0.00036372,120]
[343978719,1733168235549,-506.05,0.00036372,120]
[343978720,1733168235575,-506.05,0.00036372,120]
[343978721,1733168235602,-506.05,0.00036372,120]
[343978722,1733168235630,-506.05,0.00036372,120]
[343978723,1733168235655,-506.05,0.00036372,120]
[343978724,1733168235680,-506.05,0.00036372,120]
[343978725,1733168235706,-506.05,0.00036372,120]
[343978726,1733168235732,-506.20958812,0.00036372,120]
[343978727,1733168235756,-500.0,0.00036372,120]
[343978728,1733168235781,-173.32024024,0.00036372,120]
[343978729,1733168235806,-162.62432707,0.00036372,60]
[343978730,1733168235832,-500.0,0.00036372,120]
[343978731,1733168235857,-500.0,0.00036372,120]
[343978732,1733168235882,-500.0,0.00036372,120]
[343978733,1733168235907,-500.0,0.00036372,120]
[343978734,1733168235931,-500.0,0.00036372,120]
[343978735,1733168235957,-500.0,0.00036372,120]
[343978736,1733168235983,-500.0,0.00036372,120]
[343978737,1733168236008,-500.0,0.00036372,120]
[343978738,1733168236038,-500.0,0.00036372,120]
[343978739,1733168236068,-500.0,0.00036372,120]
[343978740,1733168236093,-500.0,0.00036372,120]
[343978741,1733168236119,-500.0,0.00036372,120]
[343978742,1733168236147,-500.0,0.00036372,120]
[343978743,1733168236173,-500.0,0.00036372,120]
[343978744,1733168236197,-500.0,0.00036372,120]
[343978745,1733168236223,-500.0,0.00036372,120]
[343978746,1733168236248,-157.26734214,0.00036372,120]
[343978747,1733168236274,-1000.0,0.00036372,120]
[343978748,1733168236302,-1000.0,0.00036372,60]
[343978749,1733168236329,-1000.0,0.00036372,60]
[343978750,1733168236354,-1000.0,0.00036372,120]
[343978751,1733168236380,-1000.0,0.00036372,60]
[343978752,1733168236405,-1000.0,0.00036372,120]
[343978753,1733168236430,-1000.0,0.00036372,60]
[343978754,1733168236459,-565.78,0.00036372,120]
[343978755,1733168236484,-565.78,0.00036372,120]
[343978756,1733168236511,-565.78,0.00036372,120]
[343978757,1733168236537,-565.78,0.00036372,120]
[343978758,1733168236563,-565.78,0.00036372,120]
[343978759,1733168236590,-565.78,0.00036372,120]
[343978760,1733168236615,-1000.0,0.00036372,60]
[343978761,1733168236641,-565.78,0.00036372,120]
[343978762,1733168236667,-565.78,0.00036372,120]
[343978763,1733168236693,-565.78,0.00036372,120]
[343978764,1733168236719,-565.78,0.00036372,120]
[343978765,1733168236743,-565.78,0.00036372,120]
[343978766,1733168236768,-565.78,0.00036372,120]
[343978767,1733168236795,-565.78,0.00036372,120]
[343978768,1733168236820,-565.78,0.00036372,120]
[343978769,1733168236846,-565.78,0.00036372,120]
[343978770,1733168236871,-565.78,0.00036372,120]
[343978771,1733168236896,-565.78,0.00036372,120]
[343978772,1733168236921,-565.78,0.00036372,120]
[343978773,1733168236946,-565.78,0.00036372,120]
[343978774,1733168236971,-565.78,0.00036372,120]
[343978775,1733168236996,-565.78,0.00036372,120]
[343978776,1733168237022,-565.78,0.00036372,120]
[343978777,1733168237050,-565.78,0.00036372,120]
[343978778,1733168237077,-565.95,0.00036372,120]
[343978779,1733168237104,-1000.0,0.00036372,60]
[343978780,1733168237132,-1000.0,0.00036372,60]
[343978781,1733168237160,-1500.0,0.00036372,120]
[343978782,1733168237187,-1000.0,0.00036372,60]
[343978783,1733168237214,-1000.0,0.00036372,60]
[343978784,1733168237240,-1438.76833009,0.00036372,60]
[343978785,1733168237266,-415.98718874,0.00036372,120]
[343978786,1733168237294,-530.7880856,0.00036372,120]
[343978787,1733168237320,-1114.92646949,0.00036372,60]
[343978788,1733168237345,-1489.0,0.00036372,120]
[343978789,1733168237369,-343.62188922,0.00036372,120]
[343978790,1733168237394,-833.44976622,0.00036372,120]
[343978791,1733168237419,-443.63456317,0.00036372,120]
[343978792,1733168237444,-756.0,0.00036372,120]
[343978793,1733168237468,-1091.68023842,0.00036372,120]
[343978794,1733168237495,-280.81797122,0.00036372,120]
[343978795,1733168237519,-4000.0,0.00036372,120]
[343978796,1733168237545,-7000.11693214,0.00036372,120]
[343978797,1733168237571,-1635.52,0.00036372,120]
[343978798,1733168237598,-1635.52,0.00036372,120]
[343978799,1733168237625,-1635.52,0.00036372,120]
[343978800,1733168237651,-1635.52,0.00036372,120]
[343978801,1733168237677,-1635.52,0.00036372,120]
[343978802,1733168237703,-1635.52,0.00036372,120]
[343978803,1733168237729,-1635.52,0.00036372,120]
[343978804,1733168237755,-1635.52,0.00036372,120]
[343978805,1733168237785,-1635.52,0.00036372,120]
[343978806,1733168237812,-1635.52,0.00036372,120]
[343978807,1733168237840,-1635.52,0.00036372,120]
[343978808,1733168237867,-1635.52,0.00036372,120]
[343978809,1733168238210,-1635.52,0.00036372,120]
[343978810,1733168238239,-1635.52,0.00036372,120]
[343978811,1733168238267,-1635.52,0.00036372,120]
[343978812,1733168238295,-1635.52,0.00036372,120]
[343978813,1733168238323,-1635.52,0.00036372,120]
[343978814,1733168238351,-1635.52,0.00036372,120]
[343978815,1733168238379,-1635.52,0.00036372,120]
[343978816,1733168238405,-1635.52,0.00036372,120]
[343978817,1733168238432,-1635.52,0.00036372,120]
[343978818,1733168238460,-1635.52,0.00036372,120]
[343978819,1733168238487,-1635.52,0.00036372,120]
[343978820,1733168238516,-1635.62,0.00036372,120]
[343978821,1733168238544,-572.74,0.00036372,120]
[343978822,1733168238571,-572.74,0.00036372,120]
[343978823,1733168238597,-572.74,0.00036372,120]
[343978824,1733168238623,-572.74,0.00036372,120]
[343978825,1733168238649,-572.74,0.00036372,120]
[343978826,1733168238675,-572.74,0.00036372,120]
[343978827,1733168238702,-572.74,0.00036372,120]
[343978828,1733168238729,-572.74,0.00036372,120]
[343978829,1733168238756,-572.74,0.00036372,120]
[343978830,1733168238785,-572.74,0.00036372,120]
[343978831,1733168238812,-572.74,0.00036372,120]
[343978832,1733168238840,-572.74,0.00036372,120]
[343978833,1733168238868,-572.74,0.00036372,120]
[343978834,1733168238895,-572.74,0.00036372,120]
[343978835,1733168238921,-572.74,0.00036372,120]
[343978836,1733168238947,-572.74,0.00036372,120]
[343978837,1733168238973,-572.74,0.00036372,120]
[343978838,1733168239000,-572.74,0.00036372,120]
[343978839,1733168239025,-572.74,0.00036372,120]
[343978840,1733168239054,-572.74,0.00036372,120]
[343978841,1733168239081,-572.74,0.00036372,120]
[343978842,1733168239107,-572.74,0.00036372,120]
[343978843,1733168239135,-572.74,0.00036372,120]
[343978844,1733168239162,-572.78,0.00036372,120]
[343978845,1733168239192,-500.0,0.00036372,120]
[343978846,1733168239220,-500.0,0.00036372,120]
[343978847,1733168239251,-500.0,0.00036372,120]
[343978848,1733168239284,-500.0,0.00036372,120]
[343978849,1733168239313,-500.0,0.00036372,120]
[343978850,1733168239341,-500.0,0.00036372,120]
[343978851,1733168239370,-500.0,0.00036372,120]
[343978852,1733168239398,-500.0,0.00036372,120]
[343978853,1733168239426,-500.0,0.00036372,120]
[343978854,1733168239455,-500.0,0.00036372,120]
[343978855,1733168239483,-500.0,0.00036372,120]
[343978856,1733168239512,-500.0,0.00036372,120]
[343978857,1733168239547,-500.0,0.00036372,120]
[343978858,1733168239576,-500.0,0.00036372,120]